fUSD/lending_fUSD_20260315
["ID","MTS","AMOUNT","RATE_DAILY","PERIOD"]
[408390899,1773549040543,-4609.0,0.00019399,2]
[408390900,1773549040552,-490.0,0.00019417,2]
[408390901,1773549040561,-490.0,0.00019437,2]
[408390902,1773549040570,-490.0,0.00019465,2]
[408390903,1773549040580,-496.0,0.0001947,2]
[408390904,1773549040589,-350.0,0.00019471,2]
[408390905,1773549040598,-310.02994207,0.000195,2]
[408390906,1773549040607,-490.0,0.00019507,2]
[408390907,1773549040616,-1109.0,0.0001952,5]
[408390908,1773549040625,-888.0,0.0001952,5]
[408390909,1773549040634,-350.0,0.00019528,2]
[408390910,1773549040644,-490.0,0.00019614,2]
[408390911,1773549040653,-490.0,0.00019635,2]
[408390912,1773549040662,-2968.0,0.00019689,2]
[408390913,1773549040671,-490.0,0.0001969,2]
[408390914,1773549040680,-490.0,0.00019717,2]
[408390915,1773549040689,-490.0,0.00019736,2]
[408390916,1773549040699,-490.0,0.00019749,2]
[408390917,1773549040708,-490.0,0.00019784,2]
[408390918,1773549040717,-490.0,0.00019805,2]
[408390919,1773549040726,-2000.0,0.00019864,2]
[408390920,1773549040735,-3905.41103914,0.000199,2]
[408390921,1773549040744,-400.0,0.000199,7]
[408390922,1773549040755,-11041.90674348,0.000199,2]
[408390923,1773549040764,-490.0,0.00019913,2]
[408390924,1773549040773,-2968.0,0.00019915,2]
[408390925,1773549040782,-1600.0,0.00019915,2]
[408390926,1773549040791,-490.0,0.00019942,2]
[408390927,1773549040800,-490.0,0.00019944,2]
[408390929,1773549040809,-490.0,0.00019955,2]
[408390930,1773549040818,-490.0,0.00019962,2]
[408390931,1773549040827,-490.0,0.00019976,2]
[408390932,1773549040836,-490.0,0.00019998,2]
[408390933,1773549040845,-1061.27454403,0.00019999,5]
[408390934,1773549040854,-1061.27454404,0.00019999,5]
[408390935,1773549040863,-1456543.49298539,0.0002,2]
[408390936,1773549040875,-4233.76529843,0.0002,2]
[408390937,1773549040884,-172.6439,0.0002,2]
[408390938,1773549040894,-172.6439,0.0002,2]
[408390939,1773549040903,-172.6439,0.0002,2]
[408390940,1773549040913,-172.6439,0.0002,2]
[408390941,1773549040922,-172.6439,0.0002,2]
[408390942,1773549040931,-172.6439,0.0002,2]
[408390943,1773549040941,-216.84,0.0002,2]
[408390944,1773549040950,-211.95758796,0.0002,2]
[408390945,1773549040959,-268.34975316,0.0002,2]
[408390946,1773549040968,-346.38,0.0002,2]
[408390947,1773549040978,-194.905143,0.0002,2]
[408390948,1773549040987,-700603.57914205,0.0002,2]
[408390949,1773549040996,-1318.31522047,0.0002,2]
[408390950,1773549041005,-200.0,0.0002,2]
[408390951,1773549041014,-200.0,0.0002,2]
[408390952,1773549041023,-151.0,0.0002,2]
[408390954,1773549041032,-285.9316,0.0002,2]
[408390956,1773549041041,-5000.0,0.0002,2]
[408390957,1773549041050,-3781.835403,0.0002,2]
[408390958,1773549041059,-250.0,0.0002,2]
[408390959,1773549041068,-200.0,0.000202,2]
[408390960,1773549041077,-200.0,0.000202,2]
[408390961,1773549041086,-200.0,0.00020402,2]
[408390962,1773549041094,-158.72,0.00020548,2]
[408390963,1773549041103,-157.31,0.00020563,2]
[408390964,1773549041112,-207.83,0.000206,7]
[408390965,1773549041121,-200.0,0.00020606,2]
[408390966,1773549041130,-200.0,0.00020812,2]
[408390967,1773549041139,-500.0,0.00020877,2]
[408390968,1773549041147,-7451.48205972,0.00020915,9]
[408390969,1773549041157,-1613.0,0.00020991,2]
[408390970,1773549041166,-164.0,0.00021,14]
[408390971,1773549041175,-400.0,0.00021,2]
[408390972,1773549041184,-227.43,0.00021333,2]
[408390973,1773549041193,-6453.0,0.00021339,2]
[408390974,1773549041202,-354.09367325,0.00021408,2]
[408390975,1773549041211,-4939.6105596,0.00021749,2]
[408390976,1773549041221,-2500.0,0.00021917,2]
[408390977,1773549041230,-2500.0,0.00021917,2]
[408390978,1773549041239,-2500.0,0.00021917,2]
[408390979,1773549041249,-2500.0,0.00021917,2]
[408390980,1773549041258,-2500.0,0.00021917,2]
[408390981,1773549041267,-2500.0,0.00021917,2]
[408390982,1773549041276,-1445.1719844,0.00021917,2]
[408390983,1773549041285,-5000.0,0.00021918,2]
[408390984,1773549041294,-156.94,0.00021918,2]
[408390985,1773549041304,-151.0,0.00021918,2]
[408390986,1773549041313,-151.0,0.00021918,2]
[408390987,1773549041322,-151.0,0.00021918,2]
[408390988,1773549041331,-151.00001,0.00021918,2]
[408390989,1773549041341,-37829.0843573,0.00021993,2]
[408390990,1773549041351,-500.0,0.00022,2]
[408390991,1773549041360,-500.0,0.00022,2]
[408390992,1773549041371,-500.0,0.00022,2]
[408390993,1773549041380,-500.0,0.00022,2]
[408390994,1773549041390,-500.0,0.00022,2]
[408390995,1773549041401,-500.0,0.00022,2]
[408390996,1773549041410,-500.0,0.00022,2]
[408390997,1773549041419,-500.0,0.00022,2]
[408390998,1773549041427,-500.0,0.00022,2]
[408390999,1773549041437,-500.0,0.00022,2]
[408391000,1773549041446,-500.0,0.00022,2]
[408391001,1773549041455,-500.0,0.00022,2]
[408391002,1773549041465,-600.0,0.00022,2]
[408391003,1773549041474,-600.0,0.00022,2]
[408391004,1773549041483,-600.0,0.00022,2]
[408391005,1773549041493,-600.0,0.00022,2]
[408391006,1773549041502,-600.0,0.00022,2]
[408391007,1773549041511,-600.0,0.00022,2]
[408391008,1773549041521,-600.0,0.00022,2]
[408391009,1773549041530,-500.0,0.00022,2]
[408391010,1773549041539,-600.0,0.00022,2]
[408391011,1773549041548,-600.0,0.00022,2]
[408391012,1773549041556,-500.0,0.00022,2]
[408391013,1773549041565,-600.0,0.00022,2]
[408391014,1773549041574,-36.83467056,0.00022,2]
[408391015,1773549041597,-563.16532944,0.00022,2]
[408391016,1773549041606,-500.0,0.00022,2]
[408391017,1773549041616,-398.02545533,0.00022,2]
[408391018,1773549041627,-201.97454467,0.00022,2]
[408391019,1773549041636,-156.27510641,0.00022,2]
[408391020,1773549043028,-443.72489359,0.00022,2]
[408391021,1773549043038,-500.0,0.00022,2]
[408391022,1773549043047,-289.9337148,0.00022,2]
[408391023,1773549043058,-310.0662852,0.00022,2]
[408391024,1773549043067,-600.0,0.00022,2]
[408391025,1773549043076,-253.62927434,0.00022,2]
[408391026,1773549043138,-246.37072566,0.00022,2]
[408391027,1773549043147,-265.67406048,0.00022,2]
[408391028,1773549043160,-334.32593952,0.00022,2]
[408391029,1773549043169,-600.0,0.00022,2]
[408391030,1773549043178,-500.0,0.00022,2]
[408391031,1773549043187,-800.73470973,0.00022,2]
[408391032,1773549043196,-600.0,0.00022,2]
[408391033,1773549043205,-500.0,0.00022,2]
[408391034,1773549043214,-600.0,0.00022,2]
[408391035,1773549043223,-500.0,0.00022,2]
[408391036,1773549043232,-600.0,0.00022,2]
[408391037,1773549043241,-500.0,0.00022,2]
[408391038,1773549043250,-600.0,0.00022,2]
[408391039,1773549043259,-500.0,0.00022,2]
[408391040,1773549043268,-600.0,0.00022,2]
[408391041,1773549043277,-500.0,0.00022,2]
[408391042,1773549043286,-600.0,0.00022,2]
[408391043,1773549043295,-783.32894395,0.00022,2]
[408391044,1773549043305,-600.0,0.00022,2]
[408391045,1773549043314,-5000.0,0.00022,7]
[408391046,1773549043324,-10000.0,0.00022,7]
[408391047,1773549043332,-3580.9506844,0.00022043,2]
[408391048,1773549043341,-1430.0071365,0.00022175,2]
[408391049,1773549043350,-216.85,0.000224,60]
[408391050,1773549043359,-16117.8692509,0.00022547,2]
[408391051,1773549043368,-8440.8096509,0.0002264,2]
[408391052,1773549043382,-799.0180996,0.00022701,2]
[408391053,1773549043391,-319.0777213,0.00022863,2]
[408391054,1773549043407,-203.11821975,0.00022864,2]
[408391055,1773549043416,-2000.0,0.000229,2]
[408391056,1773549043426,-5000.0,0.00023,7]
[408391057,1773549043435,-450.0,0.00023,2]
[408391058,1773549043445,-708.0,0.00023015,2]
[408391059,1773549043454,-3596.3827472,0.00023317,2]
[408391060,1773549043464,-29357.82,0.00023368,2]
[408391062,1773549043474,-2300.09,0.00023368,2]
[408391064,1773549043483,-9999.99,0.00023368,2]
[408391066,1773549043491,-4285.15,0.00023368,2]
[408391068,1773549043500,-8515.2943389,0.00023408,16]
[408391070,1773549043511,-9035.0,0.00023473,2]
[408391071,1773549043522,-6888.8688737,0.00023508,2]
[408391073,1773549043532,-8991.0109009,0.00023848,2]
[408391075,1773549043540,-2096.22,0.00023858,2]
[408391077,1773549043549,-6364.0,0.00023888,2]
[408391079,1773549043559,-1906.6761821,0.00023953,2]
[408391081,1773549043568,-5000.0,0.00024,7]
[408391083,1773549043577,-849.0,0.0002426,3]
[408391085,1773549043586,-1537.114415,0.00024484,2]
[408391087,1773549043595,-156.94,0.00024486,2]
[408391089,1773549043604,-521.0,0.0002457,10]
[408391091,1773549043613,-18387.0,0.0002457,10]
[408391093,1773549043622,-697.42,0.00024658,2]
[408391096,1773549043632,-1000.0,0.00024658,2]
[408391098,1773549043641,-151.0,0.00024658,2]
[408391101,1773549043650,-150.0,0.00024658,2]
[408391104,1773549043659,-2006.1657022,0.00024834,2]
[408391106,1773549043668,-311740.593969,0.000249,3]
[408391108,1773549043677,-285.32879457,0.00024913,2]
[408391110,1773549043686,-288.71246171,0.00024923,5]
[408391112,1773549043695,-227.43,0.00024939,2]
[408391114,1773549043705,-425.4369618,0.00024945,2]
[408391116,1773549043714,-500.0,0.00025,30]
[408391119,1773549043724,-500.0,0.00025,30]
[408391120,1773549043733,-500.0,0.00025,30]
[408391122,1773549043742,-500.0,0.00025,30]
[408391124,1773549043752,-500.0,0.00025,30]
[408391126,1773549043761,-500.0,0.00025,30]
[408391128,1773549043770,-500.0,0.00025,30]
[408391130,1773549043778,-500.0,0.00025,30]
[408391131,1773549043787,-500.0,0.00025,30]
[408391132,1773549043796,-500.0,0.00025,30]
[408391133,1773549043805,-514.22970843,0.00025,30]
[408391134,1773549043813,-503.33994695,0.00025,30]
[408391135,1773549043823,-500.0,0.00025,30]
[408391136,1773549043831,-500.0,0.00025,30]
[408391137,1773549043840,-500.0,0.00025,30]
[408391138,1773549043849,-500.0,0.00025,30]
[408391139,1773549043859,-500.0,0.00025,30]
[408391140,1773549043869,-500.0,0.00025,30]
[408391141,1773549043881,-500.0,0.00025,30]
[408391142,1773549043890,-500.0,0.00025,30]
[408391143,1773549043899,-500.0,0.00025,30]
[408391144,1773549043908,-500.0,0.00025,30]
[408391145,1773549043919,-500.0,0.00025,30]
[408391146,1773549043928,-500.0,0.00025,30]
[408391147,1773549043937,-500.0,0.00025,30]
[408391148,1773549043948,-500.0,0.00025,30]
[408391149,1773549043957,-500.0,0.00025,30]
[408391150,1773549043967,-135.35985473,0.00025,30]
[408391151,1773549043979,-364.64014527,0.00025,30]
[408391152,1773549043989,-500.0,0.00025,30]
[408391153,1773549043998,-500.0,0.00025,30]
[408391154,1773549044008,-500.0,0.00025,30]
[408391155,1773549044150,-500.0,0.00025,30]
[408391156,1773549044163,-500.0,0.00025,30]
[408391157,1773549044172,-500.0,0.00025,30]
[408391158,1773549044181,-500.0,0.00025,30]
[408391159,1773549044190,-500.0,0.00025,30]
[408391160,1773549044199,-500.0,0.00025,30]
[408391161,1773549044209,-500.0,0.00025,30]
[408391162,1773549044219,-500.0,0.00025,30]
[408391163,1773549044228,-500.0,0.00025,30]
[408391164,1773549044238,-500.0,0.00025,30]
[408391165,1773549044247,-500.0,0.00025,30]
[408391166,1773549044256,-500.0,0.00025,30]
[408391167,1773549044266,-500.0,0.00025,30]
[408391168,1773549044275,-150.0,0.00025,2]
[408391169,1773549044284,-1119.1827055,0.00025,2]
[408391170,1773549044298,-208.49204698,0.00025,2]
[408391171,1773549044308,-1793.29856408,0.00025,2]
[408391172,1773549044318,-540.0,0.00025,2]
[408391173,1773549044327,-613.71167137,0.00025,2]
[408391174,1773549044336,-168.09158122,0.00025,2]
[408391175,1773549044346,-500.0,0.00025,30]
[408391176,1773549044355,-500.0,0.00025,30]
[408391177,1773549044364,-600.0,0.00025,30]
[408391178,1773549044373,-500.0,0.00025,30]
[408391179,1773549044382,-500.0,0.00025,30]
[408391180,1773549044391,-501.40106128,0.00025,30]
[408391181,1773549044400,-600.0,0.00025,30]
[408391182,1773549044409,-500.0,0.00025,30]
[408391183,1773549044418,-500.0,0.00025,30]
[408391184,1773549044428,-600.0,0.00025,30]
[408391185,1773549044438,-500.0,0.00025,30]
[408391186,1773549044448,-600.0,0.00025,30]
[408391187,1773549044458,-500.0,0.00025,30]
[408391188,1773549044468,-500.0,0.00025,30]
[408391189,1773549044477,-600.0,0.00025,30]
[408391190,1773549044488,-500.0,0.00025,30]
[408391191,1773549044498,-500.0,0.00025,30]
[408391192,1773549044508,-600.0,0.00025,30]
[408391193,1773549044518,-500.0,0.00025,30]
[408391194,1773549044527,-500.0,0.00025,30]
[408391195,1773549044538,-600.0,0.00025,30]
[408391196,1773549044548,-600.0,0.00025,30]
[408391197,1773549044559,-272.70007718,0.00025,30]
[408391198,1773549044575,-327.29992282,0.00025,30]
[408391199,1773549044591,-500.0,0.00025,30]
[408391200,1773549044601,-600.0,0.00025,30]
[408391201,1773549044618,-600.0,0.00025,30]
[408391202,1773549044627,-500.0,0.00025,30]
[408391203,1773549044636,-600.0,0.00025,30]
[408391204,1773549044645,-600.0,0.00025,30]
[408391205,1773549044655,-500.0,0.00025,30]
[408391206,1773549044664,-365.39202744,0.00025,30]
[408391207,1773549044675,-234.60797256,0.00025,30]
[408391208,1773549044685,-600.0,0.00025,30]
[408391209,1773549044693,-425.22078758,0.00025,30]
[408391210,1773549044704,-74.77921242,0.00025,30]
[408391211,1773549044713,-584.10774793,0.00025,30]
[408391212,1773549044724,-15.89225207,0.00025,30]
[408391213,1773549044733,-600.0,0.00025,30]
[408391214,1773549044743,-500.0,0.00025,30]
[408391215,1773549044753,-600.0,0.00025,30]
[408391216,1773549044762,-600.0,0.00025,30]
[408391217,1773549044771,-500.0,0.00025,30]
[408391218,1773549044780,-600.0,0.00025,30]
[408391219,1773549044789,-600.0,0.00025,30]
[408391220,1773549044798,-500.0,0.00025,30]
[408391221,1773549044807,-600.0,0.00025,30]
[408391222,1773549044816,-500.0,0.00025,30]
[408391223,1773549044825,-600.0,0.00025,30]
[408391224,1773549044835,-500.0,0.00025,30]
[408391225,1773549044844,-600.0,0.00025,30]
[408391226,1773549044853,-68.8275618,0.00025,30]
[408391230,1773549045866,-577.756165,0.000199,2]
[408391231,1773549045882,-577.75616498,0.00024209,2]
[408391232,1773549045891,-431.1724382,0.00025,30]
[408391233,1773549045899,-500.0,0.00025,30]
[408391234,1773549045907,-600.0,0.00025,30]
[408391235,1773549045916,-500.0,0.00025,30]
[408391236,1773549045925,-600.0,0.00025,30]
[408391237,1773549045935,-500.0,0.00025,30]
[408391238,1773549045945,-600.0,0.00025,30]
[408391239,1773549045955,-500.0,0.00025,30]
[408391240,1773549045964,-500.0,0.00025,30]
[408391241,1773549045973,-500.0,0.00025,30]
[408391242,1773549045981,-500.0,0.00025,30]
[408391243,1773549045990,-500.0,0.00025,30]
[408391244,1773549045999,-500.0,0.00025,30]
[408391245,1773549046008,-500.0,0.00025,30]
[408391246,1773549046017,-10000.0,0.00025,7]
[408391247,1773549046026,-500.0,0.00025,30]
[408391248,1773549046035,-500.0,0.00025,30]
[408391249,1773549046045,-500.0,0.00025,30]
[408391250,1773549046054,-500.0,0.00025,30]
[408391251,1773549046063,-512.43213366,0.00025,30]
[408391252,1773549046071,-500.0,0.00025,30]
[408391253,1773549046081,-500.0,0.00025,30]
[408391254,1773549046090,-500.0,0.00025,30]
[408391255,1773549046099,-500.0,0.00025,30]
[408391256,1773549046108,-500.0,0.00025,30]
[408391257,1773549046117,-500.0,0.00025,30]
[408391258,1773549046126,-500.0,0.00025,30]
[408391259,1773549046136,-500.0,0.00025,30]
[408391260,1773549046145,-500.0,0.00025,30]
[408391261,1773549046155,-500.0,0.00025,30]
[408391262,1773549046163,-500.0,0.00025,30]
[408391263,1773549046181,-500.0,0.00025,30]
[408391264,1773549046195,-756.3491332,0.00025,30]
[408391265,1773549046204,-503.92383992,0.00025,30]
[408391266,1773549046213,-500.0,0.00025,30]
[408391267,1773549046223,-500.0,0.00025,30]
[408391268,1773549046232,-500.0,0.00025,30]
[408391269,1773549046242,-500.0,0.00025,30]
[408391270,1773549046251,-500.0,0.00025,30]
[408391271,1773549046261,-500.0,0.00025,30]
[408391272,1773549046271,-500.0,0.00025,30]
[408391273,1773549046280,-500.0,0.00025,30]
[408391274,1773549046289,-500.0,0.00025,30]
[408391275,1773549046298,-500.0,0.00025,30]
[408391276,1773549046308,-500.0,0.00025,30]
[408391278,1773549046317,-500.0,0.00025,30]
[408391279,1773549046326,-500.0,0.00025,30]
[408391280,1773549046335,-500.0,0.00025,30]
[408391281,1773549046345,-500.0,0.00025,30]
[408391282,1773549046354,-500.0,0.00025,30]
[408391283,1773549046363,-500.0,0.00025,30]
[408391284,1773549046372,-500.0,0.00025,30]
[408391285,1773549046381,-981.67137029,0.00025,30]
[408391286,1773549046390,-500.0,0.00025,30]
[408391287,1773549046399,-500.0,0.00025,30]
[408391288,1773549046408,-500.0,0.00025,30]
[408391289,1773549046416,-500.0,0.00025,30]
[408391290,1773549046425,-500.0,0.00025,30]
[408391291,1773549046435,-500.0,0.00025,30]
[408391292,1773549046443,-500.0,0.00025,30]
[408391293,1773549046452,-500.0,0.00025,30]
[408391294,1773549046461,-500.0,0.00025,30]
[408391295,1773549046469,-500.0,0.00025,30]
[408391296,1773549046478,-500.0,0.00025,30]
[408391297,1773549046487,-500.0,0.00025,30]
[408391298,1773549046496,-500.0,0.00025,30]
[408391299,1773549046504,-500.0,0.00025,30]
[408391300,1773549046514,-500.0,0.00025,30]
[408391301,1773549046523,-500.0,0.00025,30]
[408391302,1773549046532,-500.0,0.00025,30]
[408391303,1773549046541,-782.64417167,0.00025,30]
[408391304,1773549046551,-500.0,0.00025,30]
[408391305,1773549046559,-994.96762556,0.00025,30]
[408391306,1773549046568,-500.0,0.00025,30]
[408391307,1773549046577,-500.0,0.00025,30]
[408391308,1773549046586,-255.11694,0.00025,2]
[408391309,1773549046594,-558.16758526,0.00025014,2]
[408391310,1773549046604,-309.0,0.0002582,2]
[408391311,1773549046613,-4939.6105596,0.00025823,2]
[408391312,1773549046622,-150.0,0.0002589,2]
[408391313,1773549046631,-10089.33994768,0.00025901,22]
[408391314,1773549046641,-603.79317177,0.0002599,2]
[408391315,1773549046649,-217.52877403,0.00026,2]
[408391316,1773549046659,-5000.0,0.00026,7]
[408391317,1773549046668,-655.53816765,0.000263,2]
[408391318,1773549046676,-1099.40502134,0.000264,2]
[408391319,1773549046689,-477.0,0.0002655,10]
[408391320,1773549046698,-16855.0,0.0002655,10]
[408391321,1773549046707,-2000.0,0.000266,2]
[408391322,1773549046716,-150.086,0.00026778,2]
[408391323,1773549046725,-150.0,0.00026778,2]
[408391324,1773549046735,-1214.0,0.00026778,2]
[408391325,1773549046744,-923.0,0.00026778,2]
[408391326,1773549046753,-1346.617,0.00026778,2]
[408391327,1773549046762,-623.34,0.00026778,2]
[408391328,1773549046772,-197.118,0.00026778,2]
[408391329,1773549046781,-250.0,0.00027,2]
[408391330,1773549046791,-1039.78955589,0.00027,2]
[408391331,1773549046800,-530.0,0.00027,2]
[408391332,1773549046809,-2000.0,0.00027,2]
[408391333,1773549046818,-2512.691397,0.0002701,2]
[408391334,1773549046828,-156.94,0.00027055,2]
[408391335,1773549046837,-150.0,0.00027185,2]
[408391336,1773549046846,-871.0,0.0002734,3]
[408391337,1773549046855,-697.42,0.00027397,2]
[408391338,1773549046864,-522.41,0.00027397,2]
[408391339,1773549046875,-1000.0,0.00027397,20]
[408391340,1773549046886,-300.0,0.00027397,2]
[408391341,1773549046895,-1454.61,0.00027397,2]
[408391342,1773549046905,-151.0,0.00027397,2]
[408391343,1773549046914,-151.0,0.00027397,2]
[408391344,1773549046925,-151.0,0.00027397,2]
[408391345,1773549046934,-151.103752,0.00027397,2]
[408391346,1773549046943,-151.0,0.00027397,2]
[408391347,1773549046952,-276.314982,0.00027397,2]
[408391348,1773549046962,-202.37653498,0.000275,2]
[408391349,1773549046971,-552.76108717,0.000275,2]
[408391350,1773549046979,-160.0,0.00028,2]
[408391351,1773549046988,-643.0,0.00028,2]
[408391352,1773549046998,-5000.0,0.00028,7]
[408391353,1773549047007,-500.0,0.00028055,2]
[408391354,1773549047016,-270.0,0.00028336,2]
[408391355,1773549047025,-2857.11554672,0.00028393,29]
[408391356,1773549047039,-616.0,0.00028393,29]
[408391357,1773549047050,-8176.80136025,0.00028393,29]
[408391358,1773549047059,-577.75616498,0.00028519,2]
[408391359,1773549047068,-150.0,0.00028544,2]
[408391360,1773549047081,-331.66689648,0.00029,120]
[408391361,1773549047090,-1749.53742703,0.00029,2]
[408391362,1773549047099,-505.2775425,0.00029,2]
[408391363,1773549047108,-151.62,0.0002913,2]
[408391364,1773549047117,-7917.91656124,0.000295,120]
[408391365,1773549047127,-219.0,0.0002955,7]
[408391366,1773549047135,-156.94,0.00029623,2]
[408391367,1773549047144,-151.62,0.00029715,2]
[408391368,1773549047153,-150.0,0.00029778,2]
[408391369,1773549047162,-1214.0,0.00029778,2]
[408391370,1773549047171,-923.0,0.00029778,2]
[408391371,1773549047181,-4939.6105596,0.00029897,2]
[408391372,1773549047190,-150.0,0.00029971,2]
[408391373,1773549047200,-238.79312801,0.0002999,2]
[408391374,1773549047208,-1023.78654981,0.0003,120]
[408391375,1773549047218,-1566.48099969,0.0003,2]
[408391376,1773549047227,-183.07113448,0.0003,120]
[408391377,1773549047236,-2000.0,0.0003,3]
[408391378,1773549047245,-321.41832973,0.0003,2]
[408391379,1773549047254,-1829.74360851,0.0003,2]
[408391380,1773549047263,-164.11573679,0.0003,2]
[408391381,1773549047272,-5000.0,0.0003,7]
[408391382,1773549047281,-488.0,0.00030042,2]
[408391383,1773549047290,-1080.89377734,0.0003013,2]
[408391384,1773549047299,-638.32555376,0.0003013,2]
[408391385,1773549047308,-203.06726678,0.0003013,2]
[408391386,1773549047317,-697.42,0.00030137,2]
[408391387,1773549047326,-2000.0,0.000303,2]
[408391388,1773549047335,-151.62,0.00030301,2]
[408391389,1773549047344,-48280.2367351,0.000304,120]
[408391390,1773549047353,-285.32879457,0.0003057,2]
[408391391,1773549047362,-316.0,0.00030581,7]
[408391392,1773549047372,-272.69097746,0.00030794,2]
[408391393,1773549047381,-1619.78098471,0.0003084,2]
[408391394,1773549047390,-12767.83559563,0.00030886,37]
[408391395,1773549047399,-7687.30105778,0.00030952,2]
[408391396,1773549047408,-880.9642552,0.00030952,2]
[408391397,1773549047417,-222.0,0.00031047,7]
[408391398,1773549047426,-19935.78100768,0.0003143,4]
[408391399,1773549047435,-150.0,0.0003147,2]
[408391400,1773549047444,-198.72796451,0.000315,2]
[408391401,1773549047454,-150.0,0.000315,2]
[408391402,1773549047466,-222.0,0.0003152,7]
[408391403,1773549047474,-152.0,0.00031539,3]
[408391404,1773549047483,-4015.69671236,0.00032,120]
[408391405,1773549047492,-5000.0,0.00032,7]
[408391406,1773549047502,-10000.0,0.00032,7]
[408391407,1773549047510,-1469.0,0.00032,2]
[408391408,1773549047519,-13146.35725193,0.00032132,41]
[408391409,1773549047528,-156.94,0.00032192,2]
[408391410,1773549047538,-900.43536269,0.000323,2]
[408391411,1773549047547,-1081.858,0.00032778,2]
[408391412,1773549047557,-923.0,0.00032778,2]
[408391413,1773549047566,-1965.83087718,0.000328,120]
[408391414,1773549047578,-534.16912282,0.000328,120]
[408391415,1773549047587,-2500.0,0.000328,120]
[408391416,1773549047596,-577.75616498,0.00032828,2]
[408391417,1773549047606,-229.26538091,0.0003287,2]
[408391418,1773549047615,-1163.56126056,0.00032876,15]
[408391419,1773549047624,-6552.9091267,0.00032877,120]
[408391420,1773549047635,-3275.848593,0.00032877,120]
[408391421,1773549047645,-939.21511691,0.00032877,120]
[408391422,1773549047656,-15001.93254667,0.00032877,120]
[408391423,1773549047667,-2486.13672743,0.00032877,120]
[408391424,1773549047678,-899.9482543,0.00032877,120]
[408391425,1773549047689,-1294.86668577,0.00032877,120]
[408391426,1773549047700,-17493.75258268,0.00032877,120]
[408391427,1773549047970,-572.55342648,0.00032877,120]
[408391428,1773549047981,-4381.07510468,0.00032877,120]
[408391429,1773549338974,-1000.0,0.000136,2]
[408391430,1773549339003,-0.0008031,0.000136,2]
[408391433,1773550232101,-1816.73,0.00013259,2]
[408391434,1773550232111,-259.0,0.00013259,2]
[408391435,1773550232122,-250.0,0.00013625,2]
[408391436,1773550232131,-2562.43444681,0.00013625,2]
[408391437,1773550232144,-250.0,0.00013644,2]
[408391438,1773550232154,-1200.0,0.00013696,2]
[408391439,1773550232163,-300.0,0.00013696,2]
[408391440,1773550232172,-300.0,0.00013696,2]
[408391441,1773550232183,-300.0,0.00013698,2]
[408391442,1773550232192,-150.0,0.00013698,2]
[408391443,1773550232201,-500.0,0.00013699,2]